Cogmind - Beta 14 @@@ ROGUE MODE // 2024.11.07 @ 15:05:27 Player: Kole Result: Destroyed by as-52951 with Assembled Rifle Performance ------------- Evolutions (0) 0 Regions Visited (2) 400 Robots Destroyed (14) 70 Value Destroyed (339) 339 Prototype IDs (0) 0 Alien Tech Used (0) 0 Bonus (0) 0 TOTAL SCORE: 809 Bonus ------- None Cogmind --------- Core Integrity 0/250 Matter 259/300 Energy 250/250 System Corruption 0% Temperature Cool (0) Movement Walking (190) Ox1 Location -10/Mines Parts ------- > --- POWER (1) -------- Ion Engine > --- PROPULSION (2) --- Aluminum Leg > --- UTILITY (2) ------ Small Storage Unit Power Shielding > --- WEAPON (2) ------- Small Laser Assault Rifle > --- INVENTORY (8) ---- Ion Engine Aluminum Leg Aluminum Leg Aluminum Leg Improved Terrain Scanner Peak State ------------ > --- POWER ------------ Ion Engine > --- PROPULSION ------- Aluminum Leg Aluminum Leg > --- UTILITY ---------- Small Storage Unit Power Shielding > --- WEAPON ----------- Assault Rifle Light Assault Rifle > --- INVENTORY -------- Ion Engine Aluminum Leg Aluminum Leg Assault Rifle [Rating: 7] Favorites ----------- Power Ion Engine Engine Ion Engine Propulsion Aluminum Leg Leg Aluminum Leg Utility Small Storage Unit Storage Small Storage Unit Protection Power Shielding Weapon Assault Rifle Energy Gun Small Laser Ballistic Gun Assault Rifle Launcher Grenade Launcher Build | -11 -10 -10 ------- Run | Yrd Mat Min Slots Evolved . | . . . Power . | . . . Propulsion . | . . . Utility . | . . . Weapon . | . . . Parts Attached 12 | 6 5 1 Power 1 | 1 . . Engine 1 | 1 . . Core . | . . . Reactor . | . . . Propulsion 3 | 2 1 . Treads . | . . . Leg 3 | 2 1 . Wheel . | . . . Hover . | . . . Flight . | . . . Utility 2 | 1 1 . Device . | . . . Storage 1 | 1 . . Processor . | . . . Hackware . | . . . Protection 1 | . 1 . Artifact . | . . . Weapon 6 | 2 3 1 Energy Gun 1 | . . 1 Energy Cannon . | . . . Ballistic Gun 4 | 2 2 . Ballistic Cannon . | . . . Launcher 1 | . 1 . Special Weapon . | . . . Impact Weapon . | . . . Slashing Weapon . | . . . Piercing Weapon . | . . . Special Melee Weapon . | . . . Unidentified Prototypes . | . . . Parts Lost 5 | . 4 1 Power . | . . . Propulsion 2 | . 1 1 Utility . | . . . Weapon 3 | . 3 . Highest Loss Streak 4 | . 4 1 To Critical Strikes . | . . . Average Slot Usage (%) 92 | . 91 96 Engine 14 | . 14 14 Leg 26 | . 25 27 Storage 14 | . 14 14 Protection 11 | . 10 14 Energy Gun 4 | . . 11 Ballistic Gun 20 | . 24 14 Peak Build Rating 7 | 6 7 7 Average Rating 6 | 3 6 6 On Entrance 4 | . 6 6 Naked Turns . | . . . Heaviest Build 14 | 13 14 14 Greatest Support 20 | 20 20 20 Greatest Overweight (x) 1 | . 1 1 Average Overweight (x) . | . . . Largest Inventory Capacity 8 | 8 8 8 Average Capacity 7 | 7 8 8 Most Carried 6 | 4 6 5 Average Carried 3 | 1 3 3 Final Capacity 8 | 8 8 8 Final Carried 5 | 2 4 5 Class Distribution -------------------- 100% | Mutant Dominant Class ---------------- Mutant | -10/Materials Mutant | -10/Mines Resources | -11 -10 -10 ----------- Run | Yrd Mat Min Matter Collected 462 | 258 104 100 Remotely . | . . . Salvage Created 331 | . 231 100 Parts 27 | . 26 1 Haulers Intercepted . | . . . Recyclers Shooed . | . . . Parts Field Recycled . | . . . Retrieved Matter . | . . . Parts Self-Destructed . | . . . Prevented . | . . . Kills | -11 -10 -10 ------- Run | Yrd Mat Min Combat Hostiles Destroyed 13 | . 11 2 Guns 12 | . 10 2 AOE 1 | . 1 . Classes Destroyed 3 | . 3 . Builder 1 | . 1 . Swarmer 6 | . 6 . Grunt 7 | . 5 2 Best Kill Streak 4 | . 4 1 Combat Bots Only 4 | . 4 1 Max Kills in Single Turn 1 | . 1 1 Gunslinging . | . . . Exploded 1 | . 1 . Melee . | . . . Uniques/NPCs Destroyed . | . . . Combat | -11 -10 -10 -------- Run | Yrd Mat Min Hostile Shots Fired 114 | . 80 34 Missed 36 | . 26 10 Damage Taken 980 | . 580 400 Core 260 | . 128 132 Absorbed by Shields . | . . . Redirected to Shielding 20 | . 11 9 Core Remaining (%) 100 | 100 . . Volleys Fired 46 | . 32 14 Largest 2 | . 2 2 Hottest 60 | . 50 60 Shots Fired 81 | . 59 22 Gun 76 | . 54 22 Cannon . | . . . Launcher 5 | . 5 . Special . | . . . Kinetic 68 | . 54 14 Thermal 8 | . . 8 Explosive 5 | . 5 . Electromagnetic . | . . . Robot Hit Streak 14 | . 7 14 Robot Miss Streak 2 | . 2 2 Penetration Max . | . . . Secondary Targets 2 | . 2 . Max Gunslinging Chain 1 | . 1 . Shots Hit Robots 56 | . 40 16 Core Hits 26 | . 21 5 Critical Kills . | . . . Critical Parts Destroyed 1 | . 1 . Critical Strikes 1 | . 1 . Destroy 1 | . 1 . Melee Attacks . | . . . Impact . | . . . Slashing . | . . . Piercing . | . . . Sneak Attacks . | . . . Combat Hostiles . | . . . Follow-up Attacks . | . . . Damage Inflicted 951 | . 762 189 Guns 585 | . 396 189 Cannons . | . . . Explosions 366 | . 366 . Melee . | . . . Ramming . | . . . Kinetic 530 | . 396 134 Thermal 55 | . . 55 Explosive 366 | . 366 . Electromagnetic . | . . . Impact . | . . . Slashing . | . . . Piercing . | . . . Highest Corruption . | . . . Average Corruption . | . . . Corruption Purged . | . . . Corruption Blocked . | . . . Overload Shots . | . . . Overflow Damage . | . . . Projectiles . | . . . Explosions . | . . . Melee . | . . . Knockbacks . | . . . Impact . | . . . Kinetic . | . . . Secondary . | . . . Self-Inflicted Damage 53 | . 53 . Shots 2 | . 2 . Rammed . | . . . Targets Rammed . | . . . Kicked . | . . . Crushed . | . . . Highest Temperature 117 | . 18 117 Average Temperature 41 | . 6 71 Received Heat Transfer 309 | . 174 135 Siege Activations . | . . . Robots Corrupted . | . . . Combat Hostiles . | . . . Parts Fried . | . . . Impact Corruptions . | . . . Robots Melted . | . . . Combat Hostiles . | . . . Parts Melted . | . . . Heat Transferred 125 | . . 125 Parts Sabotaged . | . . . Parts Stolen . | . . . Parts Stripped . | . . . Power Chain Reactions . | . . . Alert | -11 -10 -10 ------- Run | Yrd Mat Min Peak Influence 276 | . 276 157 Initial 107 | . . 107 Average 139 | . 155 144 Maximum Alert Level 1 | . 1 . Low Security (%) 77 | 100 61 100 Level 1 22 | . 38 . Level 2 . | . . . Level 3 . | . . . Level 4 . | . . . Level 5 . | . . . High Security . | . . . Max Security . | . . . Squads Dispatched 2 | . 2 . Investigation . | . . . Extermination . | . . . Reinforcement 2 | . 2 . Assault . | . . . Garrison . | . . . Intercept . | . . . Searches Triggered . | . . . Construction Impeded . | . . . Haulers Reinforced . | . . . Active Scanning Responses . | . . . Cargo Convoy Interrupts . | . . . Stealth | -11 -10 -10 --------- Run | Yrd Mat Min Distress Signals 2 | . 2 . Communications Jammed . | . . . Distress Signals . | . . . Times Spotted 32 | . 16 16 Peak Tracking Total 20 | . 5 20 Tactical Retreats . | . . . Traps | -11 -10 -10 ------- Run | Yrd Mat Min Traps Triggered . | . . . Indirectly . | . . . Trap Hack Attempts . | . . . Triggered . | . . . Disarmed 6 | . 6 . Reprogrammed . | . . . Reused . | . . . Traps Extracted . | . . . Installed . | . . . Triggered . | . . . Machines | -11 -10 -10 ---------- Run | Yrd Mat Min Machines Disabled 2 | . 2 . Max in Single Turn 1 | . 1 . Machines Repaired . | . . . Machines Dismantled . | . . . Machines Sabotaged . | . . . Overloaded Fab Kills . | . . . Hacking | -11 -10 -10 --------- Run | Yrd Mat Min Machines Accessed 2 | . 2 . Terminals 2 | . 2 . Fabricators . | . . . Repair Stations . | . . . Recycling Units . | . . . Scanalyzers . | . . . Garrison Access . | . . . Total Hacks 6 | . 6 . Successful 3 | . 3 . Failed 3 | . 3 . Catastrophic 1 | . 1 . Database Lockouts . | . . . Manual 4 | . 4 . Terminals 6 | . 6 . Fabricators . | . . . Repair Stations . | . . . Recycling Units . | . . . Scanalyzers . | . . . Garrison Access . | . . . Terminal Hacks 1 | . 1 . Disarm Traps 1 | . 1 . Fabricator Hacks . | . . . Repair Station Hacks . | . . . Recycling Unit Hacks . | . . . Scanalyzer . | . . . Garrison Access Hacks . | . . . Unauthorized Hacks 2 | . 2 . Terminals 2 | . 2 . Botnet 2 | . 2 . Fabricators . | . . . Repair Stations . | . . . Recycling Units . | . . . Scanalyzers . | . . . Garrison Access . | . . . Data Cores Recovered . | . . . Used . | . . . Hacking Detections 2 | . 2 . Full Trace Events . | . . . Feedback Events . | . . . Feedback Blocked . | . . . Robot Schematics Acquired . | . . . Robots Built . | . . . Authchips . | . . . Time . | . . . Total Robot Build Rating . | . . . Part Schematics Acquired . | . . . Parts Built . | . . . Authchips . | . . . Time . | . . . Total Part Build Rating . | . . . Parts Repaired . | . . . Time . | . . . Parts Recycled . | . . . Recycled Matter . | . . . Retrieved Matter . | . . . Retrieved Components . | . . . Parts Scanalyzed . | . . . Part Schematics Acquired . | . . . Parts Damaged . | . . . Bothacking | -11 -10 -10 ------------ Run | Yrd Mat Min Used RIF Installer . | . . . Robots Hacked . | . . . Non-combat . | . . . Combat . | . . . Robot Hacks Applied . | . . . Relay Couplers Released . | . . . Fabnet Peak Effective % . | . . . Robots Rewired . | . . . Allies Hacked . | . . . Hacks Repelled . | . . . Allies | -11 -10 -10 -------- Run | Yrd Mat Min Total Allies . | . . . Largest Group . | . . . Highest-Rated Group . | . . . Highest-Rated Ally . | . . . Total Orders . | . . . Ally Attacks . | . . . Total Damage . | . . . Kills . | . . . Allies Corrupted . | . . . Allies Melted . | . . . Intel | -11 -10 -10 ------- Run | Yrd Mat Min Robot Analysis Total . | . . . Derelict Logs Recovered . | . . . Drone Launches . | . . . Drone Recoveries . | . . . Exploration | -11 -10 -10 ------------- Run | Yrd Mat Min Turns Passed 562 | 44 331 187 Spaces Moved 334 | 35 178 121 Core 16 | 16 . . Treads . | . . . Legs 318 | 19 178 121 Wheels . | . . . Hover . | . . . Flight . | . . . Fastest Speed 50 | 50 120 120 Average Speed 121 | 88 128 121 Slowest Speed 190 | 120 190 190 Overloaded Moves . | . . . Propulsion Burnouts . | . . . Robots Hopped . | . . . Cave-ins Triggered . | . . . Exploration Rate (%) 21 | 3 28 32 Regions Visited 2 Branch Regions 1 Pre-discovered Areas . | . . . Known Exits Taken . | . . . Unknown Exits Taken 2 | 1 1 . Scrap Searched . | . . . Spaces Dug . | . . . Terrain Destroyed 18 | . 18 . Melee . | . . . Projectile . | . . . AOE 18 | . 18 . Terrain Rammed . | . . . Walls Destroyed . | . . . Machines Disabled . | . . . Actions | -11 -10 -10 --------- Run | Yrd Mat Min Total 413 | 48 226 139 Wait 7 | . 6 1 Move 332 | 34 177 121 Hop . | . . . Pick Up 16 | 8 6 2 Fast Attach . | . . . Attach 11 | 6 4 1 Detach . | . . . Swap 1 | . 1 . Drop . | . . . Fire 46 | . 32 14 Melee . | . . . Ram . | . . . Kick . | . . . Crush . | . . . Escape Stasis . | . . . Rewire . | . . . Trap . | . . . Miscellaneous . | . . . Route ------- -11/Scrapyard -10/Materials -10/Mines (discovered 1 exit: [*Mat]) History --------- Turn | Location | Event 9 | -11/Scrapyard | Discovered new exit (range 13) 45 | -11/Scrapyard | Entered Materials 141 | -10/Materials | Discovered new exit (range 16) 310 | -10/Materials | Build established: Mutant 314 | -10/Materials | Core integrity fell below 50% 348 | -10/Materials | Lost 4 parts (1n3w) 376 | -10/Materials | Entered Mines 474 | -10/Mines | Found a hidden stash of uninstalled traps 509 | -10/Mines | Discovered new exit (range 8) 539 | -10/Mines | Assembled infested the area 560 | -10/Mines | Core integrity fell below 20% 563 | -10/Mines | Destroyed by as-52951 with Assembled Rifle Last Messages --------------- 00397_ K-01 Serf collects debris. 00403_ G-34 Mercenary destroyed. 00416_ Critical hit (Burn: +37). 00433_ G-47 Trooper destroyed. 00438_ Acquired 60 matter. 00441_ Acquired Aluminum Leg. 00449_ Acquired 40 matter. 00474_ A stash of uninstalled traps is collected here! 00509_ EXIT=FOUND 00517_ K-01 Serf collects debris. 00524_ K-01 Serf cleans the Plasma Injector. 00539_ ALERT: Infestation in the mines, dispatching Demolisher response squad. 00540_ T-07 Excavator destroyed. [Achievement: Hunted] 00550_ Acquired Imp. Terrain Scanner. 00558_ Aluminum Leg destroyed. 00559_ as-09307 destroyed. Map ----- +----------------------------------------------------+ | | | | | | | | | | | | | | | | | | | | | ?????????????????????????????????????????????????? | | ???????????????????###???????????????????????????? | | ??????????????????## #??????????????????????????? | | ??????????????????# #?????????????????????????? | | ??????????????????# #????????????????????????? | | ?????????????????## #???????????????????????? | | ?????????????????# #?????####?????????????? | | ?????????????????# ##?? ## ???????????? | | ??????????????????# ## ????? #????? | | ?????????????????????# # ## #?????? | | ??????????????????????# a ???????? | | ??????????????????????# """ % #??????????????? | | ?????????????????????## """ a ## #??????????????? | | ????????????????????## """ ##??????????????????? | | ????????? ????????# aa##???????????????????? | | ????????? ??????# @ ##????????????????????? | | ???????? ?????# ##?????????????????????? | | ?????????? ???## ##??????????????????????? | | ???????????""" #### #???????????????????????? | | ???????????""" #???????????????????????? | | ???????????""" #???????????????????????? | | ??????? #### ###???????????????????????? | | ???????? ## ##????# ########??????????????????? | | ?????????????# ####### #????????????? | | ?????????????# ## #####??????????????????? | | ??????????????######## #? #??????????????????????? | | ?????????????????????# #? ##?????????????????????? | | ????????????????????## ## ##????????????????????? | | ????????????????????# #????????????????????? | | ???????????????????## #????????????????????? | | ???????????????????# ##????????????????????? | | ???????????????????# ########??????????????? | | ???????????????????## < #??????????????? | | ????????????????????## #???????????? | | ?????????????????????# ##### ???????????? | | ?????????????????????# ###?????? ????????????? | | ?????????????????????# #??????????#?????????????? | | ?????????????????????# #????????????????????????? | | ??????????????######## #????????????????????????? | | ??????? #????????????????????????? | +----------------------------------------------------+ Best States ------------- Heat Dissipation 25 Energy Generation 10 Energy Capacity 250 Matter Stores 300 Matter Capacity 300 Sight Range 16 Terrain Scan Density 10 Power Shielding 33 Evasion (%) 55 Item Schematics ----------------- None Robot Schematics ------------------ None Fabricated ------------ Nothing Alien Tech Used ----------------- None Achievements -------------- Hunted Challenges ------------ None Game ------ Seed PhasingMasterCompressor Manual? 0 Play Time 00:08:44 Cumulative 12.0 hours Start 2024.11.07 @ 14:56:57 End 2024.11.07 @ 15:05:27 Sessions 1 Manual Loads 0 Difficulty Rogue Special Mode None Game No. 22 Rogue 22 Adventurer 0 Explorer 0 Win Type - Total 0 Types 0/0/0/0/0/0/0/0/0 Lore% 10 Gallery% 17 Achievement% 14 Wizard Run 0 Options --------- Layout 1 ASCII 0 Keyboard 0 Movement Arrows Keybinds 0 Fullscreen 2 Font 24/Smallcaps Map View 50x35 Zoom Use 0% Tactical HUD 1 Map Filters NONE Filters NONE Steam 1 RUN: e2b6ad94-0244-4dd5-b0d1-fae777d20ad6